bitfinex-derivatives/quotes_SOLF0:USTF0_20250709
["timestamp","ask_amount","ask_price","bid_price","bid_amount"]
[1752030059131,8.4569682,151.82,151.8,6.5861]
[1752030059326,9.22800743,151.86,151.8,6.5861]
[1752030059632,12.78803353,151.85,151.8,6.5861]
[1752030059832,12.78803353,151.84,151.8,6.5861]
[1752030060033,8.4581997,151.83,151.8,6.5861]
[1752030060233,15.0436997,151.82,151.79,6.5864]
[1752030060435,6.5855,151.82,151.79,6.5864]
[1752030060634,8.45993168,151.81,151.72,2.1627]
[1752030060932,6.5868,151.79,151.76,6.5876]
[1752030063641,6.5871,151.78,151.76,6.5876]
[1752030065040,6.5867,151.79,151.76,6.5876]
[1752030065439,9.22800743,151.84,151.72,2.1627]
[1752030065740,12.82742019,151.83,151.72,2.1627]
[1752030065938,8.47474261,151.82,151.72,2.1627]
[1752030066139,6.5864,151.8,151.77,6.5871]
[1752030075944,6.5864,151.8,151.78,6.5869]
[1752030079145,6.5859,151.81,151.78,6.5869]
[1752030079344,6.5859,151.81,151.79,6.5865]
[1752030079745,6.5855,151.82,151.79,6.5865]
[1752030084656,6.585,151.83,151.8,6.586]
[1752030087756,6.585,151.83,151.81,6.5856]
[1752030088459,6.585,151.83,151.8,6.5858]
[1752030092865,6.5852,151.82,151.8,6.5858]
[1752030093053,9.22800743,151.88,151.8,6.5858]
[1752030093362,8.46349002,151.87,151.8,6.5858]
[1752030093560,6.585,151.83,151.8,6.5858]
[1752030103374,6.585,151.83,151.81,6.5856]
[1752030104681,9.22800743,151.88,151.82,6.5849]
[1752030104869,8.47742645,151.87,151.72,21.9327]
[1752030105069,9.22800743,151.92,151.72,46.51730097]
[1752030105275,0.04654015,151.87,151.85,6.5838]
[1752030105673,6.5829,151.88,151.85,6.5838]
[1752030106173,6.62769593,151.88,151.85,6.5838]
[1752030106575,0.04479593,151.88,151.86,6.5835]
[1752030107077,6.5839,151.85,151.84,0.04651832]
[1752030119289,8.49039381,151.85,151.77,2.2953]
[1752030119492,8.49039381,151.84,151.77,2.2953]
[1752030119695,8.49039381,151.83,151.79,6.5863]
[1752030119995,9.22800743,151.87,151.79,6.5863]
[1752030120194,22.02661521,151.86,151.77,2.2953]
[1752030120391,6.5859,151.81,151.77,2.2953]
[1752030121096,6.63170291,151.81,151.77,2.2953]
[1752030121288,6.63170291,151.81,151.78,6.5869]
[1752030121493,6.5862,151.8,151.77,2.2953]
[1752030121693,0.04580291,151.81,151.77,2.2953]
[1752030121894,0.04580291,151.81,151.78,6.5869]
[1752030123587,6.5862,151.8,151.78,6.5869]
[1752030130393,6.63160291,151.81,151.78,6.5869]
[1752030139202,6.5863,151.8,151.78,6.5869]
[1752030139406,6.5863,151.8,151.77,8.8824]
[1752030140601,6.5863,151.8,151.78,6.587]
[1752030141001,6.63170291,151.81,151.77,2.2953]
[1752030141204,6.63170291,151.81,151.78,6.5869]
[1752030142399,0.04580291,151.81,151.77,2.2953]
[1752030146007,0.04580291,151.81,151.8,6.5861]
[1752030146208,12.69656922,151.86,151.77,2.2953]
[1752030146409,568.88,151.88,151.77,2.2953]
[1752030146605,6.5843,151.85,151.77,2.2953]
[1752030147012,6.5843,151.85,151.82,6.5852]
[1752030148308,6.5843,151.85,151.77,2.2953]
[1752030148716,6.5843,151.85,151.82,6.585]
[1752030148916,6.5837,151.86,151.77,2.2953]
[1752030149310,6.5837,151.86,151.83,6.5846]
[1752030152919,6.5837,151.86,151.84,6.5844]
[1752030153418,188.86,151.91,151.77,2.2953]
[1752030153716,8.48156005,151.9,151.77,2.2953]
[1752030153918,15.06406005,151.89,151.77,2.2953]
[1752030154214,6.5825,151.89,151.86,6.5834]
[1752030154618,6.5825,151.89,151.77,2.2953]
[1752030156020,6.5825,151.89,151.86,6.5833]
[1752030158520,6.5819,151.9,151.86,6.5833]
[1752030158721,6.5819,151.9,151.87,6.5829]
[1752030161917,568.84,151.95,151.78,62.0]
[1752030162223,8.49262487,151.94,151.78,62.0]
[1752030162523,8.49262487,151.93,151.89,6.5819]
[1752030162822,757.68,151.95,151.89,6.5819]
[1752030163024,8.48982141,151.94,151.89,6.5819]
[1752030163219,6.5811,151.92,151.89,6.5819]
[1752030165626,6.5807,151.93,151.9,6.5817]
[1752030166221,6.5807,151.93,151.9,6.6250578]
[1752030167328,6.581,151.92,151.9,6.6250578]
[1752030168221,6.5806,151.93,151.9,6.6250578]
[1752030171627,6.62831065,151.93,151.9,6.6250578]
[1752030175934,0.04771065,151.93,151.91,6.5809]
[1752030176235,0.04771065,151.93,151.9,0.0433578]
[1752030176737,0.04771065,151.93,151.91,6.5811]
[1752030179132,0.04771065,151.93,151.92,6.5809]
[1752030179337,8.48230293,152.0,151.9,0.0433578]
[1752030179544,8.48230293,151.99,151.9,0.0433578]
[1752030179738,188.76,152.0,151.94,6.5797]
[1752030179934,6.5785,151.98,151.85,13.1675]
[1752030180132,188.78,152.0,151.94,6.5799]
[1752030180335,6.5788,151.97,151.94,6.5799]
[1752030180536,6.5788,151.97,151.95,0.04273998]
[1752030181634,188.76,152.0,151.95,0.04273998]
[1752030181838,188.74,152.01,151.95,0.04273998]
[1752030182142,757.32,152.02,151.95,0.04273998]
[1752030182339,8.51421316,152.01,151.95,6.62203998]
[1752030182540,757.32,152.02,151.95,6.62203998]
[1752030183437,197.27396085,152.01,151.95,6.62203998]
[1752030183640,6.5785,151.98,151.95,6.62203998]
[1752030184242,6.5785,151.98,151.95,0.04273998]
[1752030184440,188.76,152.01,151.95,0.04273998]
[1752030184739,188.76,152.01,151.95,6.62213998]
[1752030185536,6.5783,151.99,151.95,6.62213998]
[1752030186238,6.5776,152.0,151.95,0.04273998]
[1752030186438,188.72,152.01,151.95,0.04273998]
[1752030187344,6.5775,152.0,151.96,6.579]
[1752030187538,188.72,152.01,151.96,6.579]
[1752030188038,188.7,152.01,151.96,6.579]
[1752030188245,6.578,151.99,151.96,6.579]
[1752030189045,6.5776,152.0,151.97,6.5786]
[1752030189234,10.44418976,152.05,151.95,0.04273998]
[1752030189434,201.58016659,152.04,151.95,0.04273998]
[1752030189635,6.5773,152.01,151.98,6.5782]
[1752030190235,6.5773,152.01,151.98,6.62765488]
[1752030191439,6.5768,152.02,151.99,6.5778]
[1752030192046,6.5771,152.01,151.98,6.62755488]
[1752030194438,188.7,152.04,151.98,0.04945488]
[1752030194642,22.08159306,152.03,151.98,0.04945488]
[1752030194845,12.8971033,152.02,151.98,0.04945488]
[1752030195144,6.5779,151.99,151.98,0.04945488]
[1752030195344,15.13703802,151.99,151.98,0.04945488]
[1752030197847,188.82,152.04,151.98,0.04945488]
[1752030198050,12.96246142,152.03,151.98,0.04945488]
[1752030198249,8.57261439,152.02,151.98,0.04945488]
[1752030198450,8.57261439,152.01,151.98,0.04945488]
[1752030198750,6.5772,152.01,151.98,6.62775488]
[1752030199444,6.5768,152.02,151.99,6.5778]
[1752030199744,9.18448976,152.06,151.98,0.04945488]
[1752030199944,12.96476117,152.05,151.98,0.04945488]
[1752030200145,12.96476117,152.04,151.9,13.1635]
[1752030200345,8.57416249,152.03,152.0,0.0442429]
[1752030200545,8.57416249,152.02,151.9,13.1635]
[1752030200745,6.5769,152.02,151.99,6.5776]
[1752030200948,6.5769,152.02,152.0,0.04846217]
[1752030202547,6.5763,152.03,152.0,6.62576217]
[1752030203541,6.5759,152.04,152.01,6.5769]
[1752030203749,8.57590014,152.03,152.01,6.5769]
[1752030203947,6.5759,152.04,152.01,6.5769]
[1752030204148,15.15215988,152.03,152.0,6.62576217]
[1752030204346,6.5764,152.03,152.0,6.62576217]
[1752030204547,9.18448976,152.07,152.0,6.62576217]
[1752030204548,4.36695359,152.05,152.0,0.04846217]
[1752030204747,8.57671066,152.04,152.02,6.5765]
[1752030204947,9.18448976,152.07,152.02,6.5765]
[1752030205146,12.94635721,152.06,152.02,6.5765]
[1752030205348,15.11834511,152.05,152.02,6.5765]
[1752030205548,6.5756,152.05,152.02,6.5765]
[1752030205952,6.5756,152.05,152.02,6.62594573]
[1752030207355,6.5758,152.04,152.02,6.62594573]
[1752030208653,6.5756,152.05,152.02,6.62594573]
[1752030209150,15.75688976,152.12,152.02,0.04944573]
[1752030209349,8.51670238,152.11,152.03,2.2881]
[1752030209550,6.5724,152.12,152.04,2.3736]
[1752030209747,6.5724,152.12,152.05,0.04842694]
[1752030210151,6.5724,152.12,152.08,6.5736]
[1752030210354,189.18,152.16,152.05,0.04842694]
[1752030210545,12.8648775,152.15,152.05,0.04842694]
[1752030210743,8.5075675,152.14,152.07,6.5742]
[1752030210944,6.5732,152.1,152.08,0.04359089]
[1752030213659,8.54699138,152.15,152.08,0.04359089]
[1752030213954,8.54699138,152.14,152.08,0.04359089]
[1752030214158,189.16,152.17,152.08,0.04359089]
[1752030214357,8.54270324,152.16,152.08,0.04359089]
[1752030214548,6.5721,152.13,152.1,6.5731]
[1752030215155,6.5721,152.13,152.1,6.61483137]
[1752030215348,6.5715,152.14,152.11,6.5727]
[1752030215652,578.60108976,152.18,152.1,0.04173137]
[1752030215653,758.5766,152.18,152.1,0.04173137]
[1752030215854,8.53976167,152.17,152.1,6.61463137]
[1752030216153,758.5766,152.18,152.1,6.61463137]
[1752030216154,8.53976167,152.16,152.1,6.61463137]
[1752030216357,758.5766,152.18,152.1,6.61463137]
[1752030216550,6.5717,152.14,152.1,6.61463137]
[1752030216746,758.5766,152.18,152.1,6.61463137]
[1752030216956,8.53637474,152.17,152.1,6.61463137]
[1752030217155,8.53637474,152.16,152.12,6.5722]
[1752030217358,198.34448976,152.2,152.1,0.04173137]
[1752030217553,6.5708,152.16,152.04,64.3736]
[1752030217757,9.18448976,152.2,152.13,0.05062293]
[1752030217953,8.53275872,152.19,152.13,0.05062293]
[1752030218151,6.5708,152.16,152.04,64.3736]
[1752030218548,6.5708,152.16,152.14,0.04272438]
[1752030218756,6.571,152.15,152.04,64.3736]
[1752030218951,8.54740486,152.2,152.13,0.04236403]
[1752030219155,8.54740486,152.19,152.13,0.04236403]
[1752030219457,6.5706,152.16,152.04,64.3736]
[1752030219755,8.54372755,152.2,152.14,0.0441855]
[1752030219955,6.5709,152.16,152.04,64.3736]
[1752030220258,6.5709,152.16,152.08,0.04615174]
[1752030220557,6.5709,152.16,152.13,6.5715]
[1752030220757,6.5702,152.17,152.13,6.5715]
[1752030221152,8.54006145,152.21,152.13,0.04364166]
[1752030221354,6.5697,152.18,152.13,0.04364166]
[1752030221661,198.36448976,152.23,152.14,6.5712]
[1752030221856,8.53704695,152.22,152.14,6.5712]
[1752030222158,6.57,152.18,152.14,6.5712]
[1752030222360,6.57,152.18,152.16,0.04527471]
[1752030222663,6.5701,152.17,152.16,0.04527471]
[1752030223254,6.5698,152.18,152.16,0.04527471]
[1752030224260,6.5701,152.17,152.16,0.04527471]
[1752030227055,4.1416962,152.22,152.09,2.207]
[1752030227056,0.04403437,152.18,152.09,2.207]
[1752030227462,9.18448976,152.21,152.09,2.207]
[1752030227662,8.56273359,152.2,152.09,2.207]
[1752030227963,8.56273359,152.19,152.09,2.207]
[1752030228163,8.56273359,152.18,152.09,2.207]
[1752030228365,6.5721,152.13,152.1,6.5728]
[1752030229564,6.5723,152.12,152.09,8.7804]
[1752030229765,8.56258607,152.18,152.0,64.3438]
[1752030229968,8.56258607,152.17,152.01,2.1504]
[1752030230269,6.5734,152.1,152.01,2.1504]
[1752030233160,6.5734,152.1,152.07,6.5741]
[1752030234469,6.5736,152.09,152.06,6.5747]
[1752030234670,8.5435254,152.16,152.01,2.1504]
[1752030234968,9.18448976,152.14,152.01,2.1504]
[1752030235168,17.72801516,152.13,152.01,2.1504]
[1752030235369,8.5435254,152.12,152.01,2.1504]
[1752030235568,6.5754,152.05,152.02,6.5763]
[1752030236867,6.575,152.06,152.02,6.5763]
[1752030239272,6.5752,152.06,152.01,2.1504]
[1752030239767,6.5752,152.06,152.02,6.5762]
[1752030240963,6.5752,152.06,152.03,6.5761]
[1752030242768,6.5746,152.07,152.04,6.5756]
[1752030242964,6.5746,152.07,152.01,2.1504]
[1752030243469,6.5746,152.07,152.03,6.5759]
[1752030245574,6.5746,152.07,152.04,6.5757]
[1752030246476,6.5749,152.06,152.03,6.576]
[1752030247268,10.58410789,152.12,151.98,568.16]
[1752030247472,8.5190415,152.11,151.98,568.16]
[1752030247669,8.5190415,152.1,151.98,568.16]
[1752030247870,6.5756,152.05,152.01,6.5767]
[1752030248779,6.5756,152.05,152.02,6.5765]
[1752030249479,6.5756,152.05,152.02,6.62078052]
[1752030251481,6.5758,152.04,152.02,0.04428052]
[1752030251880,8.50804993,152.09,152.02,0.04428052]
[1752030252079,17.66205782,152.08,151.91,567.96]
[1752030252278,8.55686148,152.07,151.93,193.8657]
[1752030252478,6.577,152.01,151.98,6.578]
[1752030253279,6.62577199,152.01,151.98,6.578]
[1752030256188,0.04877199,152.01,151.93,4.4657]
[1752030257489,6.5781,151.99,151.93,4.4657]
[1752030258185,0.04363726,151.98,151.95,6.5792]
[1752030258688,0.04363726,151.98,151.93,4.4657]
[1752030259487,0.04363726,151.98,151.96,6.5789]
[1752030259986,0.04363726,151.98,151.97,6.5787]
[1752030261590,0.04363726,151.98,151.93,4.4657]
[1752030262286,6.62223726,151.98,151.95,6.5795]
[1752030264490,6.62223726,151.98,151.96,6.5792]
[1752030266390,6.62223726,151.98,151.95,6.5794]
[1752030266593,0.04363726,151.98,151.93,2.1716]
[1752030267193,0.04363726,151.98,151.94,2.1723]
[1752030268594,0.04363726,151.98,151.97,6.5787]
[1752030273202,0.04363726,151.98,151.96,6.5791]
[1752030274803,0.04363726,151.98,151.94,2.1723]
[1752030274996,0.04363726,151.98,151.93,2.1716]
[1752030275192,6.579,151.97,151.93,2.1716]
[1752030275599,6.579,151.97,151.94,6.5799]
[1752030276602,0.04363726,151.98,151.89,2.2633]
[1752030276901,0.04363726,151.98,151.89,4.6022]
[1752030276902,8.46789697,151.97,151.89,4.6022]
[1752030277106,8.46802353,151.96,151.89,4.6022]
[1752030277302,0.04363726,151.98,151.89,4.6022]
[1752030277503,8.46888731,151.97,151.89,4.6022]
[1752030277706,6.63002096,151.95,151.91,6.581]
[1752030278202,0.05022096,151.95,151.89,4.6022]
[1752030278708,0.05022096,151.95,151.94,6.58]
[1752030281609,9.14318627,152.02,151.98,6.5781]
[1752030281809,8.47197152,152.01,151.89,4.6022]
[1752030282006,8.47197152,152.0,151.89,4.6022]
[1752030282207,9.14318627,152.03,151.89,4.6022]
[1752030282411,8.43683476,152.02,151.89,4.6022]
[1752030282603,6.5782,151.99,151.89,4.6022]
[1752030282800,9.14318627,152.03,151.89,4.6022]
[1752030283006,8.43676006,152.02,151.89,4.6022]
[1752030283305,8.43676006,152.01,151.89,4.6022]
[1752030283505,9.14318627,152.04,151.89,4.6022]
[1752030283707,8.43766422,152.03,151.89,4.6022]
[1752030283904,8.43766422,152.02,151.89,4.6022]
[1752030284104,8.43766422,152.01,151.89,4.6022]
[1752030284306,10.40098627,152.05,151.89,4.6022]
[1752030284607,6.5773,152.01,151.98,6.5782]
[1752030285406,6.5768,152.02,151.99,6.5778]
[1752030285709,8.44004959,152.01,151.99,6.5778]
[1752030285907,6.5768,152.02,151.99,6.5778]
[1752030286106,8.47630375,152.01,151.99,6.5778]
[1752030286306,6.5768,152.02,151.99,6.5778]
[1752030286606,8.47722545,152.01,151.99,6.5778]
[1752030286804,6.5768,152.02,151.99,6.5778]
[1752030288106,6.577,152.01,151.98,6.5781]
[1752030289710,6.5775,152.0,151.97,6.5786]
[1752030290308,6.5775,152.0,151.9,62.0]
[1752030290803,6.5772,152.01,151.9,62.0]
[1752030291003,6.5772,152.01,151.98,6.5782]
[1752030292912,6.5775,152.0,151.97,6.5786]
[1752030296314,6.5771,152.01,151.97,6.5786]
[1752030296513,8.51052952,152.0,151.97,6.5786]
[1752030296713,6.5771,152.01,151.97,6.5786]
[1752030296917,15.08802612,152.0,151.97,6.5786]
[1752030297115,8.51065668,151.99,151.97,6.5786]
[1752030297308,9.18362121,152.03,151.97,6.5786]
[1752030297510,8.51231768,152.02,151.97,6.5786]
[1752030297713,8.51231768,152.01,151.97,6.5786]
[1752030297912,8.51231768,152.0,151.97,6.5786]
[1752030298109,8.51231768,151.99,151.97,6.5786]
[1752030298415,9.18362121,152.03,151.97,6.5786]
[1752030298615,6.5777,152.0,151.97,6.5786]
[1752030298810,8.5129553,151.99,151.97,6.5786]
[1752030299012,6.5777,152.0,151.97,6.5786]
[1752030299211,8.51295189,151.99,151.97,6.5786]
[1752030299511,6.5777,152.0,151.97,6.5786]
[1752030299812,8.51362963,151.99,151.97,6.5786]
[1752030300011,6.5777,152.0,151.97,6.5786]
[1752030300215,8.51363228,151.99,151.97,6.5786]
[1752030300410,6.5777,152.0,151.97,6.5786]
[1752030300615,8.51410699,151.99,151.97,6.5786]
[1752030300818,6.5777,152.0,151.97,6.5786]
[1752030301019,8.5141104,151.99,151.97,6.5786]
[1752030301214,6.5777,152.0,151.97,6.5786]
[1752030301414,8.51406875,151.99,151.97,6.5786]
[1752030301615,6.5777,152.0,151.97,6.5786]
[1752030301917,8.51407215,151.99,151.97,6.5786]
[1752030302119,6.5777,152.0,151.97,6.5786]
[1752030302319,8.51406875,151.99,151.97,6.5786]
[1752030302618,6.5772,152.01,151.98,6.5782]
[1752030302819,8.51404329,152.0,151.98,6.5782]
[1752030303019,8.51404329,151.99,151.98,6.5782]
[1752030306516,6.5772,152.01,151.98,6.5782]
[1752030306725,8.50471619,152.0,151.98,6.5782]
[1752030306924,8.50471619,151.99,151.98,6.5782]
[1752030308620,9.22136911,152.04,152.0,6.577]
[1752030308824,8.50406026,152.03,152.0,6.577]
[1752030309027,8.50406026,152.02,152.0,6.577]
[1752030309215,8.50406026,152.01,152.0,6.577]
[1752030309419,8.50406026,152.01,151.99,6.5777]
[1752030309621,8.50406026,152.0,151.99,6.5777]
[1752030311021,8.50406026,152.0,151.91,13.1621]
[1752030311226,6.5772,152.01,151.91,13.1621]
[1752030311424,8.53168314,152.0,151.91,13.1621]
[1752030311620,9.22136911,152.04,151.91,13.1621]
[1752030311825,6.5769,152.02,151.99,6.5779]
[1752030312023,8.53155935,152.01,151.99,6.5779]
[1752030312224,6.5769,152.02,151.99,6.5779]
[1752030312419,15.1081583,152.01,151.99,6.5779]
[1752030312721,6.577,152.01,151.99,6.5779]
[1752030313219,6.5768,152.02,151.99,6.5779]
[1752030313418,8.53110769,152.01,151.99,6.5779]
[1752030313624,8.53110769,152.0,151.99,6.5779]
[1752030314527,8.53110769,152.0,151.89,4.6022]
[1752030314821,201.68400991,152.06,151.89,4.6022]
[1752030314822,8.53110769,151.99,151.89,4.6022]
[1752030315030,6.5779,151.99,151.96,6.5789]
[1752030316327,8.53197251,151.98,151.96,6.5789]
[1752030316520,6.5783,151.98,151.95,6.5795]
[1752030316722,8.53235912,151.97,151.95,6.5795]
[1752030316924,6.5783,151.98,151.95,6.5795]
[1752030317124,8.53236859,151.97,151.95,6.5795]
[1752030317330,6.5783,151.98,151.95,6.5795]
[1752030317530,8.53230027,151.97,151.95,6.5795]
[1752030317720,6.5783,151.98,151.95,6.5795]
[1752030317926,8.53230027,151.97,151.95,6.5795]
[1752030318124,6.5783,151.98,151.95,6.5795]
[1752030318327,8.53230027,151.97,151.95,6.5795]
[1752030318525,6.5783,151.98,151.95,6.5795]
[1752030318718,8.51407707,151.97,151.95,6.5795]
[1752030318919,6.5783,151.98,151.95,6.5795]
[1752030319118,8.51407707,151.97,151.95,6.5795]
[1752030319321,6.5783,151.98,151.95,6.5795]
[1752030319521,8.51385734,151.97,151.95,6.5795]
[1752030319722,6.5783,151.98,151.95,6.5795]
[1752030319922,8.51385734,151.97,151.95,6.5795]
[1752030320128,6.5783,151.98,151.95,6.5795]
[1752030320327,8.51385734,151.97,151.95,6.5795]
[1752030320535,6.5783,151.98,151.95,6.5795]
[1752030320731,8.51389224,151.97,151.95,6.5795]
[1752030320929,6.5783,151.98,151.95,6.5795]
[1752030321132,8.51389224,151.97,151.95,6.5795]
[1752030321429,6.5783,151.98,151.95,6.5795]
[1752030321629,8.51419745,151.97,151.95,6.5795]
[1752030321830,6.5783,151.98,151.95,6.5795]
[1752030322030,8.51419745,151.97,151.95,6.5795]
[1752030322233,6.5783,151.98,151.95,6.5795]
[1752030322430,8.51627638,151.97,151.95,6.5795]
[1752030322630,6.5783,151.98,151.95,6.5795]
[1752030322829,8.50717246,151.97,151.95,6.5795]
[1752030323037,6.5783,151.98,151.95,6.5795]
[1752030323238,8.50717246,151.97,151.95,6.5795]
[1752030323442,6.5783,151.98,151.95,6.5795]
[1752030323641,8.50954609,151.97,151.95,6.5795]
[1752030323838,6.5783,151.98,151.95,6.5795]
[1752030324039,8.50954609,151.97,151.95,6.5795]
[1752030324240,6.5783,151.98,151.95,6.5795]
[1752030324539,8.50997848,151.97,151.95,6.5795]
[1752030324738,6.5783,151.98,151.95,6.5795]
[1752030324939,8.50997848,151.97,151.95,6.5795]
[1752030325140,6.5783,151.98,151.95,6.5795]
[1752030325438,8.50997848,151.97,151.95,6.5795]
[1752030325644,6.5783,151.98,151.95,6.5795]
[1752030325943,8.511235,151.97,151.95,6.5795]
[1752030326143,6.5783,151.98,151.95,6.5795]
[1752030326343,8.51123517,151.97,151.95,6.5795]
[1752030326542,6.5783,151.98,151.95,6.5795]
[1752030326751,8.50349391,151.97,151.95,6.5795]
[1752030327040,6.5783,151.98,151.95,6.5795]
[1752030327235,8.50349391,151.97,151.95,6.5795]
[1752030327437,6.5783,151.98,151.95,6.5795]
[1752030327641,8.50318678,151.97,151.95,6.5795]
[1752030327843,6.5783,151.98,151.95,6.5795]
[1752030328041,8.50318678,151.97,151.95,6.5795]
[1752030328242,6.5783,151.98,151.95,6.5795]
[1752030328443,8.5028628,151.97,151.95,6.5795]
[1752030328645,6.5783,151.98,151.95,6.62133988]
[1752030328941,8.5028628,151.97,151.95,6.62133988]
[1752030329140,6.5783,151.98,151.95,6.62133988]
[1752030329342,8.5028628,151.97,151.95,6.62133988]
[1752030329539,6.5783,151.98,151.95,6.62133988]
[1752030329740,8.50245214,151.97,151.95,6.62133988]
[1752030329942,6.5783,151.98,151.95,6.62133988]
[1752030330137,8.50245214,151.97,151.95,6.62133988]
[1752030330339,6.5783,151.98,151.95,6.62133988]
[1752030330640,8.50207416,151.97,151.95,6.62133988]
[1752030330945,6.5783,151.98,151.95,6.62133988]
[1752030331142,8.50207416,151.97,151.95,6.62133988]
[1752030331345,6.5783,151.98,151.95,6.62133988]
[1752030331639,8.50172692,151.97,151.95,6.62133988]
[1752030331851,8.50229023,151.96,151.95,0.04183988]
[1752030333143,15.08149023,151.96,151.95,0.04183988]
[1752030333535,15.08149023,151.96,151.89,4.6022]
[1752030333536,17.72365934,151.96,151.89,2.3389]
[1752030333735,8.50229023,151.95,151.89,2.3389]
[1752030334043,0.04427708,151.97,151.89,2.3389]
[1752030334044,8.50229023,151.94,151.89,2.3389]
[1752030334246,9.22136911,151.97,151.89,2.3389]
[1752030334544,8.49754412,151.96,151.89,2.3389]
[1752030334743,8.54597966,151.95,151.89,2.3389]
[1752030334943,15.07764412,151.94,151.91,6.5811]
[1752030335134,6.5801,151.94,151.91,6.5811]
[1752030335333,0.04843554,151.95,151.92,6.5807]
[1752030335334,6.62803554,151.95,151.92,6.5807]
[1752030335940,0.04843554,151.95,151.9,2.177]
[1752030336542,0.04843554,151.95,151.93,6.5802]
[1752030337843,6.62813554,151.95,151.92,6.5808]
[1752030338347,6.58,151.94,151.91,6.5811]
[1752030338647,0.04843554,151.95,151.9,2.177]
[1752030338849,6.62823554,151.95,151.92,6.5809]
[1752030339447,0.04843554,151.95,151.92,6.5809]
[1752030339851,6.58,151.94,151.91,6.5812]
[1752030341942,6.62823554,151.95,151.92,6.5809]
[1752030342348,0.04843554,151.95,151.9,2.177]
[1752030343652,6.58,151.94,151.91,6.5812]
[1752030348153,0.04843554,151.95,151.9,2.177]
[1752030348554,0.04843554,151.95,151.94,6.58]
[1752030348748,0.04843554,151.95,151.9,2.177]
[1752030349752,0.04843554,151.95,151.94,6.58]
[1752030352757,0.04843554,151.95,151.9,2.177]
[1752030352953,0.04843554,151.95,151.89,2.3389]
[1752030353257,8.47953397,151.94,151.89,2.3389]
[1752030353458,6.5807,151.93,151.89,2.3389]
[1752030354257,6.5802,151.94,151.89,2.3389]
[1752030354656,0.04843554,151.95,151.89,2.3389]
[1752030354859,8.47985841,151.94,151.89,2.3389]
[1752030355060,0.04843554,151.95,151.89,2.3389]
[1752030355756,6.5805,151.93,151.9,6.5815]
[1752030356858,0.04843554,151.95,151.86,2.2057]
[1752030357060,8.46385622,151.94,151.86,2.2057]
[1752030357260,3.99273446,151.97,151.86,2.2057]
[1752030357457,0.04249757,151.92,151.86,2.2057]
[1752030358570,6.5816,151.91,151.88,6.5826]
[1752030361156,6.582,151.9,151.87,6.583]
[1752030363667,6.5815,151.91,151.88,6.5826]
[1752030367373,6.62359757,151.92,151.89,6.5822]
[1752030371474,6.62359757,151.92,151.88,6.5825]
[1752030371776,6.62359757,151.92,151.86,2.2057]
[1752030372381,0.04249757,151.92,151.86,2.2057]
[1752030373182,6.62339757,151.92,151.89,6.582]
[1752030374683,6.62339757,151.92,151.88,6.5825]
[1752030375284,6.62339757,151.92,151.89,6.5821]
[1752030378486,0.04249757,151.92,151.86,2.2057]
[1752030379891,6.62339757,151.92,151.89,6.582]
[1752030382591,0.04249757,151.92,151.89,6.582]
[1752030383089,0.04249757,151.92,151.91,6.5813]
[1752030387997,6.5803,151.94,151.86,2.2057]
[1752030387998,9.21768576,151.99,151.9,0.04327627]
[1752030388187,8.37042478,151.98,151.9,0.04327627]
[1752030388391,14.94922478,151.97,151.93,6.58]
[1752030388591,6.5788,151.97,151.91,2.3365]
[1752030389196,6.5788,151.97,151.94,6.5798]
[1752030389998,6.5784,151.98,151.95,6.5795]
[1752030390197,8.38716999,151.97,151.95,6.5795]
[1752030390395,9.21768576,152.01,151.91,2.3365]
[1752030390691,6.5787,151.98,151.94,6.5798]
[1752030390896,8.3862647,151.97,151.94,6.5798]
[1752030391097,6.5787,151.98,151.94,6.5798]
[1752030391290,8.38545863,151.97,151.94,6.5798]
[1752030391491,6.5787,151.98,151.94,6.5798]
[1752030391798,8.38552419,151.97,151.94,6.5798]
[1752030392001,6.5787,151.98,151.94,6.5798]
[1752030395100,6.5781,151.99,151.91,2.3365]
[1752030395292,766.93768576,152.02,151.92,2.2672]